Cogmind - Beta 17 @@@ ROGUE MODE // 2026.07.14 @ 11:56:37 Player: kite Result: Self-destructed Performance ------------- Evolutions (1) 500 Regions Visited (5) 1000 Robots Destroyed (37) 185 Value Destroyed (879) 879 Prototype IDs (34) 680 Alien Tech Used (0) 0 Bonus (300) 300 TOTAL SCORE: 3544 Bonus ------- Aligned with FarCom 300 Cogmind --------- Core Integrity 20/400 Matter 290/300 Energy 100/100 System Corruption 0% Temperature Cool (0) Movement Treading (160) Location -9/Exiles Parts ------- > --- POWER (1) -------- (None) > --- PROPULSION (3) --- Light Treads Improved Treads Improved Treads > --- UTILITY (2) ------ High-capacity Storage Unit Weapon Shielding > --- WEAPON (3) ------- Datajack Maul Mining Claw > --- INVENTORY (20) --- Light Treads Light Treads Light Treads Light Treads Light Treads Light Treads Light Treads Light Treads Light Treads Light Treads Huge Storage Unit Machine Analyzer Improved Terrain Scanner Propulsion Shielding Medium Laser Plasma Cutter Mining Claw Mining Claw Mining Claw Peak State ------------ > --- POWER ------------ Improved Ion Engine > --- PROPULSION ------- Light Treads Improved Treads Improved Treads > --- UTILITY ---------- High-capacity Storage Unit Weapon Shielding > --- WEAPON ----------- Maul Mining Claw Mining Claw > --- INVENTORY -------- Light Treads Light Treads Light Treads Light Treads Light Treads Light Treads Light Treads Light Treads Light Treads Light Treads Wheel High-capacity Storage Unit Machine Analyzer Improved Terrain Scanner Propulsion Shielding Medium Laser Datajack Plasma Cutter Mining Claw Mining Claw [Rating: 15] Favorites ----------- Power Light Ion Engine Engine Light Ion Engine Propulsion Light Treads Treads Light Treads Utility High-capacity Storage Unit Device Seismic Detector Storage High-capacity Storage Unit Processor Visual Processing Unit Protection Weapon Shielding Weapon Mining Claw Ballistic Gun Light Assault Rifle Impact Weapon Maul Slashing Weapon Mining Claw Special Melee Weapon Datajack Build | -11 -10 -10 -9 -9 -9 ------- Run | Yrd Mat Min Mat Min Exi Slots Evolved 2 | . . . 2 . . Power . | . . . . . . Propulsion 1 | . . . 1 . . Utility . | . . . . . . Weapon 1 | . . . 1 . . Parts Attached 34 | 6 5 3 19 . 1 Power 3 | 1 . . 2 . . Engine 3 | 1 . . 2 . . Core . | . . . . . . Reactor . | . . . . . . Propulsion 13 | 2 1 1 9 . . Treads 13 | 2 1 1 9 . . Leg . | . . . . . . Wheel . | . . . . . . Hover . | . . . . . . Flight . | . . . . . . Utility 9 | 1 2 1 5 . . Device 1 | . . . 1 . . Storage 4 | 1 1 . 2 . . Processor 1 | . . . 1 . . Hackware . | . . . . . . Protection 3 | . 1 1 1 . . Artifact . | . . . . . . Weapon 9 | 2 2 1 3 . 1 Energy Gun . | . . . . . . Energy Cannon . | . . . . . . Ballistic Gun 2 | 2 . . . . . Ballistic Cannon . | . . . . . . Launcher . | . . . . . . Special Weapon . | . . . . . . Impact Weapon 1 | . . . 1 . . Slashing Weapon 5 | . 2 1 2 . . Piercing Weapon . | . . . . . . Special Melee Weapon 1 | . . . . . 1 Unidentified Prototypes . | . . . . . . Parts Lost 8 | . . 2 5 1 . Power 3 | . . 1 1 1 . Propulsion 2 | . . . 2 . . Utility 1 | . . . 1 . . Weapon 2 | . . 1 1 . . Highest Loss Streak 2 | . . 2 2 1 . To Critical Strikes . | . . . . . . Average Backups 15 | 2 7 12 18 20 19 Power . | . 1 1 . . . Propulsion 7 | 1 2 4 9 11 10 Utility 2 | . . 1 3 4 4 Weapon 3 | . 3 4 3 3 3 Tool/Special . | . . . . . . Unused Backups 14 | . 2 . 2 . 10 Power . | . . . . . . Propulsion 7 | . 2 . 1 . 4 Utility 3 | . . . 1 . 2 Weapon 3 | . . . . . 3 Tool/Special 1 | . . . . . 1 Average Slot Usage (%) 93 | . 93 93 96 92 88 Engine 8 | . 14 8 9 4 . Treads 31 | . 28 28 32 33 33 Storage 12 | . 14 14 11 11 11 Protection 10 | . 8 14 8 11 11 Ballistic Gun 1 | . 6 . . . . Impact Weapon 4 | . . . 5 11 11 Slashing Weapon 24 | . 21 27 27 22 14 Peak Build Rating 15 | 6 8 8 15 15 13 Average Rating 10 | 5 6 7 11 13 13 On Entrance 8 | . 6 8 7 15 13 Avg Prop Armor Cover (%) . | . . . . . . Naked Turns . | . . . . . . Heaviest Build 95 | 11 48 48 95 55 48 Greatest Support 66 | 40 40 40 66 66 66 Greatest Overweight (x) 1 | . 1 1 1 . . Average Overweight (x) . | . . 1 . . . Largest Inventory Capacity 25 | 8 20 20 25 20 20 Average Capacity 18 | 7 14 20 20 20 20 Most Carried 21 | 4 10 17 21 20 20 Average Carried 15 | 2 7 12 18 20 19 Final Capacity 20 | 8 20 20 20 20 20 Final Carried 20 | 4 10 17 20 20 19 Class Distribution -------------------- 93% | Mutant 6% | Scavenger-Mutant Dominant Class ---------------- Mutant | -10/Materials Mutant | -10/Mines Mutant | -9/Materials Mutant | -9/Mines Mutant | -9/Exiles Resources | -11 -10 -10 -9 -9 -9 ----------- Run | Yrd Mat Min Mat Min Exi Matter Collected 586 | 75 208 103 187 13 . Remotely . | . . . . . . Salvage Created 1204 | . 193 103 872 36 . Parts 89 | . 15 12 58 4 . Haulers Intercepted 1 | . 1 . . . . Recyclers Shooed . | . . . . . . Parts Field Recycled . | . . . . . . Retrieved Matter . | . . . . . . Parts Self-Destructed . | . . . . . . Prevented . | . . . . . . Parts Restored . | . . . . . . Kills | -11 -10 -10 -9 -9 -9 ------- Run | Yrd Mat Min Mat Min Exi Combat Hostiles Destroyed 28 | . 3 2 19 4 . Melee 21 | . 1 2 16 2 . Guns 2 | . 2 . . . . Classes Destroyed 10 | . 3 1 6 . . Builder 2 | . 1 . 1 . . Tunneler 2 | . . . 2 . . Hauler 1 | . 1 . . . . Recycler 1 | . . . 1 . . Mechanic 1 | . . . 1 . . Watcher 2 | . . . 2 . . Swarmer 11 | . . . 7 4 . Grunt 7 | . 3 . 4 . . Duelist 2 | . . . 2 . . Sentry 8 | . . 2 6 . . Best Kill Streak 5 | . 3 2 5 2 . Combat Bots Only 5 | . 2 2 5 2 . Max Kills in Single Turn 1 | . 1 1 1 1 . Gunslinging . | . . . . . . Exploded . | . . . . . . Melee 1 | . 1 1 1 1 . Uniques/NPCs Destroyed . | . . . . . . Combat | -11 -10 -10 -9 -9 -9 -------- Run | Yrd Mat Min Mat Min Exi Hostile Shots Fired 238 | . 18 20 138 62 . Missed 49 | . 4 2 26 17 . Hits 189 | . 14 18 112 45 . Melee 4 | . . . 4 . . Projectile 185 | . 14 18 108 45 . Critical Strikes 7 | . . 1 6 . . Damage Taken 2223 | . 150 270 1451 352 . Core 456 | . 31 45 266 114 . Absorbed by Shields . | . . . . . . Redirected to Shielding 73 | . 9 30 27 7 . Core Remaining (%) 84 | 100 . 69 . . . Volleys Fired 14 | 2 12 . . . . Largest 2 | 2 2 . . . . Hottest 40 | 40 40 . . . . Shots Fired 28 | 4 24 . . . . Gun 28 | 4 24 . . . . Cannon . | . . . . . . Launcher . | . . . . . . Special . | . . . . . . Kinetic 28 | 4 24 . . . . Thermal . | . . . . . . Explosive . | . . . . . . Electromagnetic . | . . . . . . Robot Hit Streak 13 | . 13 . . . . Robot Miss Streak 1 | . 1 . . . . Penetration Max . | . . . . . . Secondary Targets . | . . . . . . Shots Hit Robots 99 | . 20 5 62 9 3 Core Hits 31 | . 7 2 21 1 . Critical Kills . | . . . . . . Critical Parts Destroyed 5 | . . . 5 . . Critical Strikes 5 | . . . 5 . . Smash 5 | . . . 5 . . Melee Attacks 118 | . 8 6 87 14 3 Impact 26 | . . . 15 11 . Slashing 89 | . 8 6 72 3 . Piercing . | . . . . . . Sneak Attacks 14 | . 3 . 8 . 3 Combat Hostiles . | . . . . . . Follow-up Attacks 23 | . 2 1 17 3 . Damage Inflicted 2422 | 15 299 117 1720 271 . Guns 198 | 15 183 . . . . Cannons . | . . . . . . Explosions . | . . . . . . Melee 2224 | . 116 117 1720 271 . Ramming . | . . . . . . Kinetic 198 | 15 183 . . . . Thermal . | . . . . . . Explosive . | . . . . . . Electromagnetic . | . . . . . . Impact 570 | . . . 348 222 . Slashing 1654 | . 116 117 1372 49 . Piercing . | . . . . . . Highest Corruption . | . . . . . . Average Corruption . | . . . . . . Corruption Purged . | . . . . . . Corruption Blocked . | . . . . . . Overload Shots . | . . . . . . Overflow Damage 399 | . 24 . 312 63 . Projectiles . | . . . . . . Explosions . | . . . . . . Melee 399 | . 24 . 312 63 . Knockbacks 1 | . . . 1 . . Impact 1 | . . . 1 . . Kinetic . | . . . . . . Secondary . | . . . . . . Self-Inflicted Damage . | . . . . . . Shots . | . . . . . . Rammed . | . . . . . . Targets Rammed . | . . . . . . Kicked . | . . . . . . Crushed . | . . . . . . Highest Temperature 12 | . 12 7 5 . . Average Temperature 6 | . 7 7 3 . . Received Heat Transfer 552 | . 84 90 378 . . Siege Activations . | . . . . . . Martial Activations . | . . . . . . Shielding Activations . | . . . . . . Robots Disrupted . | . . . . . . Combat Hostiles . | . . . . . . Robots Corrupted 5 | . . . 3 2 . Combat Hostiles 5 | . . . 3 2 . Parts Fried 4 | . . . 4 . . Impact Corruptions 12 | . . . 8 4 . Robots Melted . | . . . . . . Combat Hostiles . | . . . . . . Parts Melted . | . . . . . . Heat Transferred . | . . . . . . Parts Sabotaged . | . . . . . . Parts Stolen . | . . . . . . Parts Stripped . | . . . . . . Power Chain Reactions . | . . . . . . Alert | -11 -10 -10 -9 -9 -9 ------- Run | Yrd Mat Min Mat Min Exi Maximum Alert Level . | . . . . . . Low Security (%) 100 | 100 100 100 100 100 . Level 1 . | . . . . . . Level 2 . | . . . . . . Level 3 . | . . . . . . Level 4 . | . . . . . . Level 5 . | . . . . . . High Security . | . . . . . . Max Security . | . . . . . . Peak Influence 153 | . 37 20 153 55 . Initial 54 | . . . . 54 . Average 30 | . 5 . 58 24 . Influence Increases 810 | . 79 40 586 105 . Destroy 0b10 Robot/C 560 | . 60 40 380 80 . Destroy 0b10 Robot/NC 45 | . 10 . 35 . . Destroy Leader 126 | . 2 . 114 10 . Successful Hack 15 | . 7 . 8 . . Destroy Structure 4 | . . . 4 . . Lose Combat Pursuer 60 | . . . 45 15 . Influence Decreases 810 | . 79 40 446 245 . Entered New Map 86 | . . . . 86 . Time Decay 663 | . 79 30 405 149 . Lost Part 61 | . . 10 41 10 . Squads Dispatched 4 | . 1 . 3 . . Investigation 2 | . 1 . 1 . . Extermination . | . . . . . . Reinforcement 2 | . . . 2 . . Assault . | . . . . . . Garrison . | . . . . . . Intercept . | . . . . . . Searches Triggered . | . . . . . . Construction Impeded . | . . . . . . Haulers Reinforced . | . . . . . . Active Scanning Responses . | . . . . . . Cargo Convoy Interrupts . | . . . . . . Stealth | -11 -10 -10 -9 -9 -9 --------- Run | Yrd Mat Min Mat Min Exi Distress Signals 3 | . . . 3 . . Communications Jammed . | . . . . . . Distress Signals . | . . . . . . Times Spotted 41 | . 3 2 31 5 . Peak Tracking Total 5 | . 2 2 5 4 . Tactical Retreats 4 | . . . 3 1 . Traps | -11 -10 -10 -9 -9 -9 ------- Run | Yrd Mat Min Mat Min Exi Traps Triggered 3 | . . . 3 . . Indirectly . | . . . . . . Trap Hack Attempts . | . . . . . . Triggered . | . . . . . . Disarmed . | . . . . . . Reprogrammed . | . . . . . . Reused . | . . . . . . Traps Extracted . | . . . . . . Installed . | . . . . . . Triggered . | . . . . . . Machines | -11 -10 -10 -9 -9 -9 ---------- Run | Yrd Mat Min Mat Min Exi Machines Disabled . | . . . . . . Max in Single Turn . | . . . . . . Machines Repaired . | . . . . . . Machines Dismantled . | . . . . . . Machines Sabotaged . | . . . . . . Overloaded Fab Kills . | . . . . . . Hacking | -11 -10 -10 -9 -9 -9 --------- Run | Yrd Mat Min Mat Min Exi Machines Accessed 7 | . 2 . 4 . 1 Terminals 5 | . 2 . 3 . . Fabricators . | . . . . . . Repair Stations 1 | . . . 1 . . Recycling Units . | . . . . . . Scanalyzers . | . . . . . . Garrison Access . | . . . . . . Total Hacks 17 | . 5 . 11 . 1 Successful 3 | . 1 . 1 . 1 Failed 14 | . 4 . 10 . . Catastrophic 5 | . 1 . 4 . . Database Lockouts . | . . . . . . Manual 14 | . 5 . 8 . 1 Terminals 13 | . 5 . 8 . . Fabricators . | . . . . . . Repair Stations 3 | . . . 3 . . Recycling Units . | . . . . . . Scanalyzers . | . . . . . . Garrison Access . | . . . . . . Terminal Hacks 3 | . 1 . 1 . 1 Part Schematic 1 | . 1 . . . . Branch Access Points 1 | . . . 1 . . Proto ID Catalog 1 | . . . . . 1 Fabricator Hacks . | . . . . . . Repair Station Hacks . | . . . . . . Recycling Unit Hacks . | . . . . . . Scanalyzer . | . . . . . . Garrison Access Hacks . | . . . . . . Unauthorized Hacks . | . . . . . . Terminals . | . . . . . . Fabricators . | . . . . . . Repair Stations . | . . . . . . Recycling Units . | . . . . . . Scanalyzers . | . . . . . . Garrison Access . | . . . . . . Data Cores Recovered . | . . . . . . Used . | . . . . . . Hacking Detections 6 | . 2 . 4 . . Full Trace Events 2 | . 1 . 1 . . Feedback Events . | . . . . . . Feedback Blocked . | . . . . . . Robot Schematics Acquired . | . . . . . . Robots Built . | . . . . . . Authchips . | . . . . . . Time . | . . . . . . Total Robot Build Rating . | . . . . . . Part Schematics Acquired 1 | . 1 . . . . Parts Built . | . . . . . . Authchips . | . . . . . . Time . | . . . . . . Total Part Build Rating . | . . . . . . Part Studies Acquired . | . . . . . . Parts Repaired . | . . . . . . Time . | . . . . . . Parts Recycled . | . . . . . . Recycled Matter . | . . . . . . Retrieved Matter . | . . . . . . Retrieved Components . | . . . . . . Parts Scanalyzed . | . . . . . . Part Schematics Acquired . | . . . . . . Parts Damaged . | . . . . . . Bothacking | -11 -10 -10 -9 -9 -9 ------------ Run | Yrd Mat Min Mat Min Exi Used RIF Installer . | . . . . . . Robots Hacked 3 | . . . . . 3 Non-combat 2 | . . . . . 2 Combat 1 | . . . . . 1 Robot Hacks Applied 3 | . . . . . 3 parse_system 3 | . . . . . 3 Relay Couplers Released . | . . . . . . Fabnet Peak Effective % . | . . . . . . Robots Rewired . | . . . . . . Allies Hacked . | . . . . . . Hacks Repelled . | . . . . . . Allies | -11 -10 -10 -9 -9 -9 -------- Run | Yrd Mat Min Mat Min Exi Total Allies 3 | . . . . 3 . Largest Group 3 | . . . . 3 3 Highest-Rated Group 40 | . . . . 40 40 Highest-Rated Ally 16 | . . . . 16 16 Total Orders . | . . . . . . Ally Attacks . | . . . . . . Total Damage . | . . . . . . Kills . | . . . . . . Allies Corrupted . | . . . . . . Allies Melted . | . . . . . . Intel | -11 -10 -10 -9 -9 -9 ------- Run | Yrd Mat Min Mat Min Exi Active Infowar (turns) 158 | . . . 158 . . Optics 32 | . . . 32 . . Seismic 126 | . . . 126 . . Robot Analysis Total . | . . . . . . Derelict Logs Recovered 1 | . . . . 1 . Drone Launches . | . . . . . . Drone Recoveries . | . . . . . . Exploration | -11 -10 -10 -9 -9 -9 ------------- Run | Yrd Mat Min Mat Min Exi Turns Passed 2711 | 91 426 477 1058 364 295 Spaces Moved 1260 | 50 178 187 461 204 180 Core 6 | 6 . . . . . Treads 1254 | 44 178 187 461 204 180 Legs . | . . . . . . Wheels . | . . . . . . Hover . | . . . . . . Flight . | . . . . . . Fastest Speed 50 | 50 160 240 160 160 160 Average Speed 177 | 146 200 240 160 160 160 Slowest Speed 240 | 160 240 240 240 160 160 Overloaded Moves . | . . . . . . Propulsion Burnouts . | . . . . . . Robots Hopped . | . . . . . . Potential Cave-ins . | . . . . . . Cave-ins Triggered . | . . . . . . Exploration Rate (%) 33 | 3 25 43 47 41 40 Regions Visited 5 Branch Regions 3 Pre-discovered Areas . | . . . . . . Known Exits Taken 1 | . . . 1 . . Unknown Exits Taken 4 | 1 1 1 . 1 . Scrap Searched . | . . . . . . Spaces Dug 2 | . . . 2 . . Terrain Destroyed 2 | . . . 2 . . Melee 2 | . . . 2 . . Projectile . | . . . . . . AOE . | . . . . . . Terrain Rammed . | . . . . . . Walls Destroyed . | . . . . . . Machines Disabled . | . . . . . . Actions | -11 -10 -10 -9 -9 -9 --------- Run | Yrd Mat Min Mat Min Exi Total 1524 | 61 215 205 640 218 185 Wait 90 | . 2 4 80 4 . Move 1255 | 49 177 186 460 203 180 Hop . | . . . . . . Pick Up 24 | 4 7 7 6 . . Fast Attach 13 | 6 3 . 4 . . Attach 9 | . . 1 8 . . Detach . | . . . . . . Swap 15 | . 2 2 10 . 1 Drop 16 | . 6 . 9 . 1 Fire 14 | 2 12 . . . . Melee 88 | . 6 5 63 11 3 Ram . | . . . . . . Kick . | . . . . . . Crush . | . . . . . . Escape Stasis . | . . . . . . Rewire . | . . . . . . Trap . | . . . . . . Miscellaneous . | . . . . . . Route ------- -11/Scrapyard -10/Materials -10/Mines -9/Materials (discovered 4 exits: [*Mat] / *Min / *Sto x2) -9/Mines (discovered 3 exits: [*Mat x2] / *Exi) -9/Exiles History --------- Turn | Location | Event 7 | -11/Scrapyard | Discovered new exit (range 15) 92 | -11/Scrapyard | Entered Materials 93 | -10/Materials | Met a group of wandering Federalists 304 | -10/Materials | Build established: Mutant 450 | -10/Materials | Discovered new exit (range 6) 518 | -10/Materials | Entered Mines 983 | -10/Mines | Discovered new exit (range 3) 995 | -10/Mines | Entered Materials 995 | -9/Materials | Evolved 2 slots: Propulsion x1, Weapon x1 1165 | -9/Materials | Discovered new exit (range 10) 1649 | -9/Materials | Discovered new exit (range 4) 1668 | -9/Materials | Core integrity fell below 50% 1972 | -9/Materials | Identified exit to Mines 1972 | -9/Materials | Identified exit to Storage 2053 | -9/Materials | Entered Mines 2187 | -9/Mines | Core integrity fell below 20% 2228 | -9/Mines | Discovered new exit (range 15) 2340 | -9/Mines | Discovered new exit (range 9) 2378 | -9/Mines | Assisted by bots powering up and referring to "LRC-V3" 2409 | -9/Mines | Deemed a non-threat by the Exiles lab entrance 2410 | -9/Mines | Discovered new exit (range 5) 2417 | -9/Mines | Entered Exiles 2417 | -9/Exiles | Accompanied by 3 allies 2456 | -9/Exiles | Met 8R-AWN 2485 | -9/Exiles | Met EX-HEX 2580 | -9/Exiles | Met EX-BIN 2599 | -9/Exiles | Aligned with FarCom system 2601 | -9/Exiles | Given EX-Vault access code 2639 | -9/Exiles | Opened EX-Vault 2683 | -9/Exiles | Warned to stay clear of 0b10 Research branches 2712 | -9/Exiles | Self-destructed Last Messages --------------- AWS/Thermal Latent Energy Streamer Gui. Plasma Cannon Firepult YOLO Cannon AWS/Gauss XL Autogun Array AWS/Autocannon Field Lobotomy Kit Longsword +1 Deploy-a-Sentry 02654_ Dropped Lgt. Treads. EX-BIN: Oh yeah, I'd suggest you stay away from the 0b10 Research branches, since the FarCom signals could be picked up there, but you're welcome to try if you really want to. And if we have to leave here due to unforeseen circumstances, don't worry the FarCom system will continue to maintain contact via our distributed network. Map ----- +----------------------------------------------------+ | | | | | | | | | | | | | | | | | | | | | | | | | | | | | | | | | | | | | | | | | | | ??????????????????????????##?????????????????????? | | ??????????????????????####X####??????????????????? | | ??????????????????????# #??????????????????? | | ??????????????????????#] ] #??????????????????? | | ??????????????????????# =@ #??????????????????? | | ??????????????????????## g ##??????????????????? | | ??????????????????????#X #???????????????????? | | ??????????????????????## g #???????????????????? | | ???????????????????????# #???????????????????? | | ???????????????????????# g #???####????????????? | | ???????????????????????# #??"""""????????????? | | ???????????????????????# ## """#???????????? | | ???????????????????????# X""#???????????? | | ???????????????????????# ## """#???????????? | | ????????????????#####??# #??"""""????????????? | | ????????????????""""""?# #???####????????????? | | ????????????????"""" ## #???????????????????? | | ???????????????#""X" #???????????????????? | | ???????????????#" #???????????????????? | | ???????????????#" ## #???????????????????? | | ???????????????#""""""?# #?#########?????????? | | ???????????????##"###??# #?#"""""""#?????????? | | ???????????????? ??????# #?#"""""""#?????????? | | ???????????????????????# #?#"""""""#?????????? | | ??????????????????????## ###"" """"#?????????? | | ??????????????????????#" """"#?????????? | | ??????????????????????#" """#?????????? | | ??????????????????????#" """#?????????? | | ??????????????????????#" """#?????????? | +----------------------------------------------------+ Best States ------------- Heat Dissipation 28 Energy Generation 12 Energy Capacity 265 Matter Stores 300 Matter Capacity 300 Sight Range 18 Terrain Scan Density 10 Armor Coverage 150 Propulsion Shielding 33 Weapon Shielding 33 Evasion (%) 40 Recoil Reduction 3 Item Schematics ----------------- Huge Storage Unit | -10/Materials | Hacked Robot Schematics ------------------ None Fabricated ------------ Nothing Repaired ---------- Nothing Studied --------- None Alien Tech Used ----------------- None Achievements -------------- None Challenges ------------ None Game ------ Seed ProjectileMagneticMultirail Manual? 0 Play Time 00:10:56 Cumulative 454.8 hours Start 2026.07.14 @ 11:45:37 End 2026.07.14 @ 11:56:37 Sessions 1 Manual Loads 0 Difficulty Rogue Special Mode None Game No. 420 Rogue 420 Adventurer 0 Explorer 0 Win Type - Total 11 Types 7/0/2/1/0/0/0/0/0/1 Lore% 61 Gallery% 69 Achievement% 65 Wizard Run 0 Options --------- Layout 1 ASCII 0 Keyboard 0 Movement Mouse Keybinds 0 Fullscreen 2 Font 24/Cog Map View 50x35 Zoom Use 59% Tactical HUD 1 Map Filters NONE Filters NONE Steam 1 RUN: 561cad02-fc9b-4e54-ac34-9ce3de5c8649